fUST/lending_fUST_20250505
["ID","MTS","AMOUNT","RATE_DAILY","PERIOD"]
[359874393,1746397843188,-500.0,0.00024999,2]
[359874395,1746397843199,-500.0,0.00024999,2]
[359874397,1746397843208,-500.0,0.00024999,2]
[359874399,1746397843218,-500.0,0.00024999,2]
[359874401,1746397843228,-239.60212423,0.00024999,2]
[359874403,1746397843237,-500.0,0.00024999,2]
[359874405,1746397843246,-500.0,0.00024999,2]
[359874408,1746397843255,-500.0,0.00024999,2]
[359874410,1746397843264,-500.0,0.00024999,2]
[359874413,1746397843274,-8175.99529318,0.00025,2]
[359874417,1746397843285,-89442.55315643,0.00025,2]
[359874420,1746397843294,-841.6056368,0.00025,7]
[359874423,1746397843303,-841.6056368,0.00025,10]
[359874439,1746397843414,-41338.06476706,0.00025104,2]
[359874441,1746397843424,-626.9437504,0.000252,12]
[359874443,1746397843433,-626.94375026,0.00025452,13]
[359874445,1746397843443,-3968.69946099,0.00026,30]
[359874447,1746397843453,-19900.0,0.00026,2]
[359874449,1746397843463,-530.46589861,0.00026,30]
[359874451,1746397843472,-626.94375026,0.00026003,14]
[359874453,1746397843481,-626.94375026,0.00026555,15]
[359874455,1746397843490,-3662.9474069,0.00027,2]
[359874457,1746397843499,-420.0,0.00027082,2]
[359874459,1746397843509,-626.94375026,0.00027107,16]
[359874461,1746397843519,-1680.0,0.00027205,2]
[359874464,1746397843528,-333.923648,0.00027397,2]
[359874466,1746397843538,-233.38949079,0.00027397,2]
[359874468,1746397843547,-45052.1752567,0.000275,2]
[359874470,1746397843556,-626.94375026,0.00027659,17]
[359874472,1746397843565,-3466.59292904,0.000278,2]
[359874474,1746397843574,-32479.91536671,0.0002799,2]
[359874476,1746397843583,-390.1809319,0.00028162,2]
[359874478,1746397843592,-1226.83807926,0.00028186,2]
[359874479,1746397843601,-626.94375026,0.0002821,18]
[359874482,1746397843611,-626.94375026,0.00028762,19]
[359874483,1746397843620,-34824.18466814,0.000292,10]
[359874485,1746397843630,-626.94375026,0.00029314,20]
[359874487,1746397843640,-587.0,0.00029339,2]
[359874489,1746397843649,-7312.5079474,0.00029554,2]
[359874491,1746397843658,-387.0,0.00029605,2]
[359874494,1746397843668,-626.94375026,0.00029866,21]
[359874495,1746397843677,-626.94375026,0.00030417,22]
[359874497,1746397843686,-500.0,0.00030452,5]
[359874499,1746397843695,-160.0,0.00030957,2]
[359874501,1746397843705,-626.94375026,0.00030969,24]
[359874504,1746397843714,-179.92802879,0.00031219,6]
[359874506,1746397843724,-626.94375026,0.00031521,25]
[359874508,1746397843733,-176.968419,0.00031702,2]
[359874510,1746397843742,-500.0,0.00031781,2]
[359874512,1746397843751,-823.0,0.00031784,2]
[359874514,1746397843761,-6010.69793813,0.00032,2]
[359874515,1746397843770,-626.94375026,0.00032072,26]
[359874517,1746397843779,-626.94375026,0.00032624,27]
[359874519,1746397843788,-160.0,0.00032791,2]
[359874521,1746397843798,-3466.59292904,0.000328,2]
[359874523,1746397843807,-160.0,0.00032863,2]
[359874526,1746397843817,-160.0,0.00032863,2]
[359874527,1746397843827,-160.0,0.00032864,2]
[359874529,1746397843836,-157.93,0.00032871,2]
[359874531,1746397843845,-1000.0,0.00032877,2]
[359874533,1746397843855,-3193.33,0.000329,7]
[359874535,1746397843864,-18267.79,0.000329,30]
[359874537,1746397843874,-3011.77697183,0.00033,2]
[359874539,1746397843883,-333.923648,0.00033165,2]
[359874542,1746397843893,-1623.00193944,0.00033171,2]
[359874543,1746397843902,-626.94375026,0.00033176,28]
[359874546,1746397843913,-208.6259579,0.00033264,2]
[359874548,1746397843923,-778.40972817,0.00033662,2]
[359874550,1746397843932,-626.94375026,0.00033728,29]
[359874552,1746397843941,-172.084,0.00033762,36]
[359874554,1746397843951,-809.2758412,0.00033774,2]
[359874556,1746397843961,-882.99797107,0.00033888,2]
[359874558,1746397843971,-1500.0,0.00033973,2]
[359874560,1746397843979,-151.0,0.00033973,14]
[359874562,1746397843989,-151.0,0.00033973,14]
[359874564,1746397843997,-152.6,0.00034,31]
[359874566,1746397844006,-626.94375026,0.00034279,30]
[359874567,1746397844015,-1152.0,0.00034433,2]
[359874569,1746397844024,-2000.0,0.00034549,4]
[359874571,1746397844033,-778.40972811,0.00034596,2]
[359874573,1746397844042,-3193.33,0.000346,7]
[359874576,1746397844052,-18267.79,0.000346,30]
[359874577,1746397844061,-164.369302,0.00034645,2]
[359874580,1746397844071,-164.369302,0.00034818,2]
[359874582,1746397844080,-626.94375026,0.00034831,31]
[359874584,1746397844089,-3148.79308902,0.0003487,4]
[359874585,1746397844099,-10605.44913116,0.00035,2]
[359874587,1746397844108,-1000.0,0.00035068,2]
[359874589,1746397844117,-152.6,0.000353,31]
[359874592,1746397844127,-152.6,0.000353,31]
[359874594,1746397844136,-626.94375026,0.00035383,32]
[359874595,1746397844145,-151.0,0.00035383,14]
[359874598,1746397844154,-151.0,0.00035383,14]
[359874600,1746397844165,-778.40972811,0.00035531,2]
[359874602,1746397844174,-219.07830058,0.00035616,7]
[359874604,1746397844184,-626.94375026,0.00035934,33]
[359874606,1746397844193,-151.0,0.00036137,31]
[359874608,1746397844206,-500.0,0.00036137,31]
[359874610,1746397844215,-151.0,0.00036137,31]
[359874612,1746397844225,-151.0,0.00036137,31]
[359874614,1746397844234,-151.0,0.00036137,31]
[359874616,1746397844243,-151.0,0.00036137,31]
[359874618,1746397844252,-151.0,0.00036137,31]
[359874620,1746397844261,-151.0,0.00036137,31]
[359874622,1746397844270,-151.0,0.00036164,31]
[359874624,1746397844280,-569.0,0.00036164,31]
[359874626,1746397844288,-151.0,0.00036164,31]
[359874628,1746397844297,-151.0,0.00036164,31]
[359874630,1746397844306,-200.19939098,0.00036164,31]
[359874632,1746397844315,-151.0,0.00036192,31]
[359874634,1746397844324,-151.0,0.00036192,31]
[359874635,1746397844333,-151.0,0.00036192,31]
[359874638,1746397844343,-151.0,0.00036219,31]
[359874640,1746397844353,-151.0,0.00036219,31]
[359874642,1746397844362,-301.12251118,0.00036219,31]
[359874644,1746397844371,-198.0,0.00036247,31]
[359874646,1746397844381,-176.968419,0.00036269,2]
[359874648,1746397844390,-3193.33,0.000363,7]
[359874650,1746397844399,-18267.79,0.000363,30]
[359874652,1746397844409,-151.0,0.000363,14]
[359874654,1746397844418,-47037.8520268,0.00036306,3]
[359874656,1746397844427,-841.6056368,0.00036306,3]
[359874658,1746397844436,-160.0,0.00036306,3]
[359874660,1746397844445,-151.0,0.00036316,15]
[359874662,1746397844454,-151.0,0.00036316,15]
[359874664,1746397844463,-151.0,0.00036316,15]
[359874666,1746397844472,-200.04564927,0.00036316,15]
[359874668,1746397844481,-151.0,0.00036316,15]
[359874670,1746397844491,-151.0,0.00036316,15]
[359874671,1746397844500,-151.0,0.00036316,15]
[359874674,1746397844509,-151.0,0.00036316,15]
[359874676,1746397844518,-151.0,0.00036316,15]
[359874677,1746397844528,-1000.0,0.00036316,15]
[359874679,1746397844537,-151.0,0.00036343,15]
[359874682,1746397844546,-198.0,0.00036371,15]
[359874684,1746397844556,-182.19332975,0.00036462,2]
[359874686,1746397844565,-160.0,0.00036462,2]
[359874688,1746397844574,-160.0,0.00036462,2]
[359874690,1746397844583,-778.40972811,0.00036465,2]
[359874692,1746397844592,-626.94375026,0.00036486,34]
[359874694,1746397844601,-403.0,0.00036594,2]
[359874696,1746397844610,-707.0,0.00036594,2]
[359874698,1746397844619,-2251.0,0.00036594,2]
[359874700,1746397844629,-156.276982,0.00036594,14]
[359874702,1746397844638,-151.0,0.00036594,14]
[359874704,1746397844647,-152.6,0.000367,31]
[359874706,1746397844656,-152.6,0.000367,31]
[359874708,1746397844665,-1965.4569086,0.00036863,4]
[359874710,1746397844674,-626.94375026,0.00037038,36]
[359874712,1746397844684,-2000.0,0.00037275,4]
[359874714,1746397844693,-1613.0,0.00037302,2]
[359874716,1746397844702,-778.40972811,0.000374,2]
[359874718,1746397844711,-626.94375026,0.0003759,37]
[359874720,1746397844720,-10243.10514404,0.000376,2]
[359874722,1746397844731,-151.0,0.0003769,2]
[359874724,1746397844740,-151.0,0.0003769,2]
[359874726,1746397844749,-151.00000091,0.0003769,2]
[359874728,1746397844758,-151.0,0.0003769,2]
[359874730,1746397844767,-250.58035918,0.00037717,2]
[359874732,1746397844776,-151.0,0.00037717,2]
[359874734,1746397844785,-195.9240172,0.00037745,2]
[359874736,1746397844794,-3193.33,0.000378,7]
[359874738,1746397844803,-18267.79,0.000378,30]
[359874740,1746397844813,-1207.19951036,0.0003788,2]
[359874742,1746397844822,-152.6,0.00038,31]
[359874744,1746397844831,-152.6,0.00038,31]
[359874746,1746397844840,-4990.3605538,0.00038,5]
[359874748,1746397844850,-8592.66313166,0.00038,2]
[359874750,1746397844862,-271.31551763,0.00038063,2]
[359874752,1746397844873,-271.31551762,0.00038088,2]
[359874754,1746397844882,-179.08150384,0.000381,2]
[359874756,1746397844891,-271.31551762,0.00038113,2]
[359874758,1746397844900,-271.31551762,0.00038138,2]
[359874759,1746397844910,-626.94375026,0.00038141,38]
[359874761,1746397844918,-238.14,0.00038153,3]
[359874763,1746397844928,-714.44,0.00038153,3]
[359874766,1746397844937,-151.0,0.00038153,14]
[359874768,1746397844946,-282227.112161,0.00038153,3]
[359874770,1746397844957,-271.31551762,0.00038163,2]
[359874772,1746397844966,-182.19332975,0.00038163,3]
[359874774,1746397844975,-160.0,0.00038163,3]
[359874776,1746397844984,-500.0,0.00038173,5]
[359874778,1746397844993,-500.0,0.00038173,5]
[359874780,1746397845002,-480.07735333,0.00038173,5]
[359874782,1746397845011,-500.0,0.00038173,2]
[359874784,1746397845020,-500.0,0.00038173,5]
[359874785,1746397845029,-500.0,0.00038173,5]
[359874787,1746397845038,-500.0,0.00038173,5]
[359874789,1746397845047,-501.65508662,0.00038173,5]
[359874791,1746397845056,-500.0,0.00038173,5]
[359874794,1746397845065,-500.0,0.00038173,5]
[359874796,1746397845075,-500.0,0.00038173,5]
[359874798,1746397845084,-500.0,0.00038173,5]
[359874799,1746397845093,-500.0,0.00038173,2]
[359874801,1746397845102,-404.43263214,0.00038173,5]
[359874804,1746397845112,-500.24732455,0.00038173,5]
[359874806,1746397845121,-501.38503629,0.00038173,5]
[359874808,1746397845130,-500.0,0.00038173,5]
[359874810,1746397845139,-500.0,0.00038173,5]
[359874811,1746397845149,-500.0,0.00038173,5]
[359874814,1746397845160,-500.0,0.00038173,5]
[359874816,1746397845170,-500.0,0.00038173,5]
[359874817,1746397845179,-500.0,0.00038173,5]
[359874819,1746397845188,-500.0,0.00038173,5]
[359874820,1746397845202,-9721.42064346,0.00038173,2]
[359874821,1746397845213,-8080.60841754,0.00038173,3]
[359874822,1746397845222,-159.127082,0.00038173,14]
[359874823,1746397845231,-253.853488,0.00038173,14]
[359874824,1746397845240,-151.0,0.00038173,14]
[359874825,1746397845250,-151.0,0.00038173,14]
[359874826,1746397845259,-151.0,0.00038173,14]
[359874827,1746397845269,-370000.0,0.00038173,2]
[359874828,1746397845278,-12008.694757,0.000382,3]
[359874830,1746397845287,-421.74012052,0.000382,3]
[359874831,1746397845296,-160.0,0.00038272,2]
[359874832,1746397845306,-160.0,0.00038273,3]
[359874833,1746397845315,-778.40972811,0.00038334,2]
[359874834,1746397845324,-999.0,0.00038356,120]
[359874835,1746397845334,-151.0,0.00038461,14]
[359874836,1746397845343,-151.0,0.00038461,14]
[359874837,1746397845353,-151.0,0.00038461,14]
[359874839,1746397845363,-1896.909624,0.00038461,2]
[359874841,1746397845372,-1896.909624,0.00038461,2]
[359874843,1746397845381,-174.190766,0.00038461,14]
[359874845,1746397845391,-151.0,0.00038461,14]
[359874847,1746397845400,-151.0,0.0003847,14]
[359874849,1746397845409,-184.080004,0.0003847,14]
[359874851,1746397845419,-184.080004,0.0003847,14]
[359874852,1746397845428,-151.0,0.0003847,14]
[359874853,1746397845437,-151.0,0.00038472,5]
[359874854,1746397845446,-151.0,0.00038472,5]
[359874855,1746397845458,-207.4,0.00038479,14]
[359874856,1746397845467,-215.0738,0.00038479,14]
[359874858,1746397845477,-223.0315306,0.00038479,14]
[359874860,1746397845486,-199.4422694,0.00038479,14]
[359874861,1746397845496,-151.0,0.0003848,14]
[359874862,1746397845505,-184.080004,0.0003848,14]
[359874863,1746397845514,-184.080004,0.0003848,14]
[359874864,1746397845524,-151.0,0.0003848,14]
[359874865,1746397845533,-153.788467,0.0003848,14]
[359874866,1746397845542,-1200.0,0.0003848,120]
[359874867,1746397845551,-5684.34,0.000385,30]
[359874868,1746397845560,-160.0,0.000385,7]
[359874869,1746397845569,-201.6877241,0.00038517,14]
[359874870,1746397845666,-196.58461169,0.00038517,14]
[359874871,1746397845676,-151.0,0.000386,15]
[359874872,1746397845685,-841.6056368,0.00038664,2]
[359874873,1746397845696,-421.74012052,0.00038664,2]
[359874875,1746397845706,-12587.2668356,0.00038664,2]
[359874877,1746397845715,-160.0,0.00038664,2]
[359874879,1746397845725,-614.95006914,0.00038673,5]
[359874881,1746397845734,-505.08335825,0.00038673,5]
[359874883,1746397845743,-151.0,0.00038689,14]
[359874885,1746397845753,-151.0,0.0003869,14]
[359874887,1746397845763,-151.0,0.0003869,14]
[359874889,1746397845773,-1896.909624,0.0003869,2]
[359874892,1746397845782,-1896.909624,0.0003869,2]
[359874893,1746397845792,-151.0,0.0003869,14]
[359874894,1746397845802,-626.94375026,0.00038693,39]
[359874895,1746397845811,-179059.81794057,0.000387,5]
[359874896,1746397845821,-500.0,0.000387,14]
[359874897,1746397845831,-184.080004,0.000387,14]
[359874898,1746397845840,-184.080004,0.000387,14]
[359874901,1746397845849,-184.080004,0.000387,14]
[359874903,1746397845859,-184.080004,0.000387,14]
[359874904,1746397845869,-151.0,0.000387,14]
[359874907,1746397845878,-151.0,0.000387,14]
[359874908,1746397845888,-151.0,0.000387,14]
[359874910,1746397845897,-151.0,0.000387,14]
[359874912,1746397845907,-151.0,0.000387,14]
[359874914,1746397845917,-151.0,0.000387,14]
[359874916,1746397845926,-207.39119,0.000387,14]
[359874918,1746397845936,-151.0,0.000387,14]
[359874920,1746397845946,-151.0,0.000387,14]
[359874922,1746397845957,-1896.909624,0.000387,2]
[359874924,1746397845966,-1896.909624,0.000387,2]
[359874926,1746397845976,-160.726512,0.000387,14]
[359874928,1746397845985,-151.0,0.000387,14]
[359874930,1746397845995,-160.0,0.000388,57]
[359874932,1746397846004,-151.0,0.000388,17]
[359874934,1746397846014,-33182.21759677,0.000388,30]
[359874936,1746397846023,-500.0,0.00038873,5]
[359874938,1746397846033,-500.0,0.00038873,5]
[359874940,1746397846042,-500.0,0.00038873,5]
[359874943,1746397846052,-500.0,0.00038873,5]
[359874945,1746397846062,-500.0,0.00038873,5]
[359874947,1746397846070,-500.0,0.00038873,5]
[359874949,1746397846080,-300.0,0.00038873,5]
[359874951,1746397846089,-500.0,0.00038873,5]
[359874953,1746397846098,-500.0,0.00038873,5]
[359874954,1746397846107,-184.080004,0.00038894,14]
[359874956,1746397846116,-184.080004,0.00038894,14]
[359874958,1746397846126,-6956.35516607,0.000389,31]
[359874959,1746397846135,-50000.0,0.000389,20]
[359874960,1746397846145,-43043.0,0.000389,31]
[359874961,1746397846153,-151.0,0.000389,18]
[359874962,1746397846163,-899.89,0.000389,2]
[359874963,1746397846172,-184.080004,0.000389,14]
[359874964,1746397846181,-184.080004,0.000389,14]
[359874965,1746397846191,-151.0,0.000389,14]
[359874966,1746397846200,-151.0,0.000389,14]
[359874967,1746397846211,-151.0,0.000389,14]
[359874968,1746397846220,-151.0,0.000389,14]
[359874969,1746397846229,-151.0,0.000389,14]
[359874970,1746397846239,-151.0,0.000389,14]
[359874971,1746397846248,-151.0,0.000389,14]
[359874972,1746397846257,-151.0,0.000389,14]
[359874973,1746397846266,-1896.909624,0.000389,2]
[359874974,1746397846276,-1896.909624,0.000389,2]
[359874975,1746397846286,-89033.29756348,0.000389,30]
[359874976,1746397846296,-2514.77389158,0.000389,15]
[359874977,1746397846305,-151.0,0.000389,14]
[359874978,1746397846314,-270.923296,0.000389,14]
[359874979,1746397846324,-200.0,0.00038904,15]
[359874980,1746397846334,-400.0,0.00038904,15]
[359874981,1746397846343,-400.0,0.00038904,15]
[359874982,1746397846353,-241.8093857,0.00038904,15]
[359874983,1746397846362,-400.0,0.00038904,15]
[359874984,1746397846371,-400.0,0.00038904,15]
[359874985,1746397846380,-400.0,0.00038904,15]
[359874986,1746397846389,-400.0,0.00038904,15]
[359874987,1746397846398,-184.080004,0.00038904,14]
[359874988,1746397846408,-184.080004,0.00038904,14]
[359874989,1746397846417,-184.080004,0.00038904,14]
[359874990,1746397846426,-400.0,0.00038904,15]
[359874991,1746397846436,-184.080004,0.00038904,14]
[359874992,1746397846445,-400.0,0.00038904,15]
[359874993,1746397846456,-184.080004,0.00038904,14]
[359874994,1746397846465,-184.080004,0.00038904,14]
[359874995,1746397846474,-184.080004,0.00038904,14]
[359874996,1746397846484,-184.080003,0.00038904,14]
[359874997,1746397846493,-400.0,0.00038904,15]
[359874998,1746397846503,-400.0,0.00038904,15]
[359874999,1746397846512,-400.0,0.00038904,15]
[359875000,1746397846521,-400.0,0.00038904,15]
[359875001,1746397846530,-400.0,0.00038904,15]
[359875002,1746397846539,-469.50639944,0.00038904,15]
[359875003,1746397846548,-500.0,0.00038904,15]
[359875004,1746397846557,-400.0,0.00038904,15]
[359875005,1746397846566,-400.0,0.00038904,15]
[359875006,1746397846575,-400.0,0.00038904,15]
[359875007,1746397846584,-400.0,0.00038904,15]
[359875008,1746397846593,-400.0,0.00038904,15]
[359875009,1746397846602,-400.0,0.00038904,15]
[359875010,1746397846611,-400.0,0.00038904,15]
[359875011,1746397846619,-400.0,0.00038904,15]
[359875012,1746397846629,-500.0,0.00038904,15]
[359875013,1746397846638,-400.0,0.00038904,15]
[359875014,1746397846647,-400.0,0.00038904,15]
[359875015,1746397846656,-400.0,0.00038904,15]
[359875016,1746397846665,-500.0,0.00038904,15]
[359875017,1746397846675,-1000.0,0.00038904,15]
[359875018,1746397846684,-1000.0,0.00038904,15]
[359875019,1746397846693,-338.13563318,0.00038904,15]
[359875020,1746397846703,-400.0,0.00038904,15]
[359875021,1746397846713,-400.0,0.00038904,15]
[359875022,1746397846723,-400.0,0.00038904,15]
[359875023,1746397846732,-400.0,0.00038904,15]
[359875024,1746397846741,-400.0,0.00038904,15]
[359875025,1746397846750,-505.89638131,0.00038904,15]
[359875026,1746397846759,-400.0,0.00038904,15]
[359875027,1746397846769,-400.0,0.00038904,15]
[359875028,1746397846778,-371.18585497,0.00038904,15]
[359875029,1746397846787,-500.0,0.00038904,15]
[359875030,1746397846796,-400.0,0.00038904,15]
[359875031,1746397846805,-400.0,0.00038904,15]
[359875032,1746397846815,-400.0,0.00038904,15]
[359875033,1746397846825,-400.0,0.00038904,15]
[359875034,1746397846834,-400.0,0.00038904,15]
[359875035,1746397846845,-400.0,0.00038904,15]
[359875036,1746397846854,-400.0,0.00038904,15]
[359875037,1746397846864,-400.0,0.00038904,15]
[359875038,1746397846875,-197.65580229,0.00038904,15]
[359875039,1746397846884,-500.0,0.00038904,15]
[359875040,1746397846894,-400.0,0.00038904,15]
[359875041,1746397846903,-400.0,0.00038904,15]
[359875042,1746397846914,-400.0,0.00038904,15]
[359875043,1746397846924,-400.0,0.00038904,15]
[359875044,1746397846934,-400.0,0.00038904,15]
[359875045,1746397846943,-298.58881636,0.00038904,15]
[359875046,1746397846952,-500.0,0.00038904,15]
[359875047,1746397846961,-400.0,0.00038904,15]
[359875048,1746397846970,-400.0,0.00038904,15]
[359875049,1746397846979,-400.0,0.00038904,15]
[359875050,1746397846988,-400.0,0.00038904,15]
[359875051,1746397846997,-400.0,0.00038904,15]
[359875052,1746397847006,-400.0,0.00038904,15]
[359875053,1746397847015,-400.0,0.00038904,15]
[359875054,1746397847032,-510.96321179,0.00038904,15]
[359875055,1746397847045,-400.0,0.00038904,15]
[359875056,1746397847056,-500.0,0.00038904,15]
[359875057,1746397847066,-400.0,0.00038904,15]
[359875058,1746397847075,-400.0,0.00038904,15]
[359875059,1746397847085,-163.42048272,0.00038904,15]
[359875060,1746397847095,-400.0,0.00038904,15]
[359875061,1746397847106,-400.0,0.00038904,15]
[359875062,1746397847117,-400.0,0.00038904,15]
[359875063,1746397847126,-400.0,0.00038904,15]
[359875064,1746397847136,-400.0,0.00038904,15]
[359875065,1746397847146,-400.0,0.00038904,15]
[359875066,1746397847156,-400.0,0.00038904,15]
[359875067,1746397847170,-400.0,0.00038904,15]
[359875068,1746397847180,-208.65,0.00038904,15]
[359875069,1746397847190,-500.0,0.00038904,15]
[359875070,1746397847199,-400.0,0.00038904,15]
[359875071,1746397847210,-400.0,0.00038904,15]
[359875072,1746397847220,-400.0,0.00038904,15]
[359875073,1746397847230,-400.0,0.00038904,15]
[359875074,1746397847240,-400.0,0.00038904,15]
[359875075,1746397847250,-400.0,0.00038904,15]
[359875076,1746397847260,-400.0,0.00038904,15]
[359875077,1746397847270,-400.0,0.00038904,15]
[359875078,1746397847280,-400.0,0.00038904,15]
[359875079,1746397847290,-400.0,0.00038904,15]
[359875080,1746397847300,-400.0,0.00038904,15]
[359875081,1746397847310,-400.0,0.00038904,15]
[359875082,1746397847321,-400.0,0.00038904,15]
[359875083,1746397847331,-400.0,0.00038904,15]
[359875084,1746397847341,-400.0,0.00038904,15]
[359875085,1746397847350,-400.0,0.00038904,15]
[359875086,1746397847361,-400.0,0.00038904,15]
[359875087,1746397847370,-500.0,0.00038904,15]
[359875088,1746397847380,-400.0,0.00038904,7]
[359875089,1746397847391,-400.0,0.00038904,15]
[359875090,1746397847400,-500.0,0.00038904,15]
[359875091,1746397847410,-500.0,0.00038904,15]
[359875092,1746397847419,-500.0,0.00038904,15]
[359875093,1746397847429,-400.0,0.00038904,15]
[359875094,1746397847439,-403.39570141,0.00038904,15]
[359875095,1746397847450,-400.0,0.00038904,15]
[359875096,1746397847460,-400.0,0.00038904,15]
[359875097,1746397847471,-400.0,0.00038904,15]
[359875098,1746397847480,-400.0,0.00038904,15]
[359875099,1746397847491,-400.0,0.00038904,15]
[359875100,1746397847501,-400.0,0.00038904,15]
[359875101,1746397847512,-400.0,0.00038904,15]
[359875102,1746397847523,-400.0,0.00038904,15]
[359875103,1746397847533,-400.0,0.00038904,15]
[359875104,1746397847542,-400.0,0.00038904,15]
[359875105,1746397847551,-400.0,0.00038904,15]
[359875106,1746397847561,-400.0,0.00038904,15]
[359875107,1746397847570,-400.0,0.00038904,15]
[359875108,1746397847579,-400.0,0.00038904,15]
[359875109,1746397847589,-400.0,0.00038904,15]
[359875110,1746397847599,-400.0,0.00038904,15]
[359875111,1746397847610,-400.0,0.00038904,15]
[359875112,1746397847620,-400.0,0.00038904,15]
[359875113,1746397847630,-293.26962529,0.00038904,15]
[359875114,1746397847639,-400.0,0.00038904,15]
[359875115,1746397847649,-400.0,0.00038904,15]
[359875116,1746397847659,-400.0,0.00038904,15]
[359875117,1746397847669,-400.0,0.00038904,15]
[359875118,1746397847679,-501.38540952,0.00038904,15]
[359875119,1746397847689,-400.0,0.00038904,15]
[359875120,1746397847698,-400.0,0.00038904,15]
[359875121,1746397847709,-400.0,0.00038904,15]
[359875122,1746397847830,-400.0,0.00038904,15]
[359875123,1746397847840,-400.0,0.00038904,15]
[359875124,1746397847849,-400.0,0.00038904,15]
[359875125,1746397847858,-400.0,0.00038904,15]
[359875126,1746397847868,-405.87350104,0.00038904,15]
[359875127,1746397847877,-400.0,0.00038904,15]
[359875128,1746397847886,-500.0,0.00038904,15]
[359875129,1746397847896,-400.0,0.00038904,15]
[359875130,1746397847905,-400.0,0.00038904,15]
[359875131,1746397847914,-400.0,0.00038904,15]
[359875132,1746397847924,-400.0,0.00038904,15]
[359875133,1746397847934,-400.0,0.00038904,15]
[359875134,1746397847946,-400.0,0.00038904,15]
[359875135,1746397847956,-400.0,0.00038904,15]
[359875136,1746397847965,-400.0,0.00038904,15]
[359875137,1746397847975,-201.66323078,0.00038904,15]
[359875138,1746397847984,-500.0,0.00038904,15]
[359875139,1746397847995,-400.0,0.00038904,15]
[359875140,1746397848005,-400.0,0.00038904,15]
[359875141,1746397848015,-400.0,0.00038904,15]
[359875142,1746397848024,-400.0,0.00038904,15]
[359875143,1746397848033,-400.0,0.00038904,15]
[359875144,1746397848042,-400.0,0.00038904,15]
[359875145,1746397848055,-504.31785066,0.00038904,15]
[359875146,1746397848064,-504.40342907,0.00038904,15]
[359875147,1746397848073,-400.0,0.00038904,15]
[359875148,1746397848083,-400.0,0.00038904,15]
[359875149,1746397848093,-500.0,0.00038904,15]
[359875150,1746397848103,-400.0,0.00038904,15]
[359875151,1746397848112,-400.0,0.00038904,15]
[359875152,1746397848121,-400.0,0.00038904,15]
[359875153,1746397848130,-357.71531911,0.00038904,15]
[359875154,1746397848139,-400.0,0.00038904,15]
[359875155,1746397848149,-400.0,0.00038904,15]
[359875156,1746397848158,-400.0,0.00038904,15]
[359875157,1746397848168,-226.32817536,0.00038904,15]
[359875158,1746397848177,-400.0,0.00038904,15]
[359875159,1746397848187,-400.0,0.00038904,15]
[359875160,1746397848196,-431.23613982,0.00038904,15]
[359875161,1746397848206,-400.0,0.00038904,15]
[359875162,1746397848216,-161.79809955,0.00038904,15]
[359875163,1746397848225,-400.0,0.00038904,15]
[359875164,1746397848235,-400.0,0.00038904,15]
[359875165,1746397848245,-400.0,0.00038904,15]